bitfinex/quotes_BTCUSD_20251102
["timestamp","ask_amount","ask_price","bid_price","bid_amount"]
[1762103224291,0.00222035,110340.0,110330.0,0.63149125]
[1762103224495,0.00222035,110340.0,110330.0,0.72131026]
[1762103225319,0.00422035,110340.0,110330.0,0.72131026]
[1762103225522,0.00222035,110340.0,110330.0,0.72131026]
[1762103225725,0.00422035,110340.0,110330.0,0.72131026]
[1762103226038,0.00422035,110340.0,110330.0,0.63149125]
[1762103231312,0.00422035,110340.0,110330.0,0.97149125]
[1762103232375,0.00222035,110340.0,110330.0,0.97149125]
[1762103232580,0.00222035,110340.0,110330.0,0.97249125]
[1762103232990,0.00022035,110340.0,110330.0,0.97249125]
[1762103233189,0.00022035,110340.0,110330.0,1.06231026]
[1762103233421,0.00022035,110340.0,110330.0,1.06331026]
[1762103236529,0.00022035,110340.0,110330.0,1.06322397]
[1762103238131,0.00022035,110340.0,110330.0,0.69271128]
[1762103245016,0.00022035,110340.0,110330.0,1.06322397]
[1762103265776,0.00022035,110340.0,110330.0,1.52400159]
[1762103266022,1e-08,110340.0,110330.0,1.67200159]
[1762103267107,1e-08,110340.0,110330.0,1.3014889]
[1762103268531,1e-08,110340.0,110330.0,1.67200159]
[1762103270012,1e-08,110340.0,110330.0,1.3014889]
[1762103281022,1e-08,110340.0,110330.0,1.1534889]
[1762103296282,1e-08,110340.0,110330.0,0.26289227]
[1762103296490,1e-08,110340.0,110330.0,0.60289227]
[1762103296699,1e-08,110340.0,110330.0,0.97346878]
[1762103296905,1e-08,110340.0,110330.0,0.26289227]
[1762103298847,1e-08,110340.0,110330.0,0.63346878]
[1762103299102,1e-08,110340.0,110330.0,0.72328779]
[1762103299337,1e-08,110340.0,110330.0,0.35271128]
[1762103299546,1e-08,110340.0,110330.0,0.72328779]
[1762103304032,1e-08,110340.0,110330.0,1.06328779]
[1762103317319,1e-08,110340.0,110330.0,0.69271128]
[1762103317513,1e-08,110340.0,110330.0,1.06328779]
[1762103320969,1e-08,110340.0,110330.0,0.97346878]
[1762103336089,1e-08,110340.0,110330.0,0.60289227]
[1762103336279,1e-08,110340.0,110330.0,0.97346878]
[1762103337222,1e-08,110340.0,110330.0,1.34404529]
[1762103337748,1e-08,110340.0,110330.0,0.97346878]
[1762103338458,1e-08,110340.0,110330.0,1.06328779]
[1762103344637,1e-08,110340.0,110330.0,0.60289227]
[1762103344845,1e-08,110340.0,110330.0,0.97346878]
[1762103348268,1e-08,110340.0,110330.0,0.60289227]
[1762103348485,1e-08,110340.0,110330.0,0.97346878]
[1762103358460,1e-08,110340.0,110330.0,0.97336083]
[1762103359479,1e-08,110340.0,110330.0,0.60289227]
[1762103362172,1e-08,110340.0,110330.0,0.69271128]
[1762103366929,1e-08,110340.0,110330.0,0.57833227]
[1762103367346,0.02265725,110340.0,110330.0,0.57833227]
[1762103367561,0.02265725,110340.0,110330.0,0.60125227]
[1762103369405,1e-08,110340.0,110330.0,0.60125227]
[1762103381291,1e-08,110340.0,110330.0,0.97172083]
[1762103384975,1e-08,110340.0,110330.0,0.60125227]
[1762103385390,1e-08,110340.0,110330.0,0.97172083]
[1762103388158,1e-08,110340.0,110330.0,0.57818227]
[1762103388392,1e-08,110340.0,110330.0,0.60301227]
[1762103389452,1e-08,110340.0,110330.0,0.97348083]
[1762103390106,1e-08,110340.0,110330.0,0.63348083]
[1762103391149,1e-08,110340.0,110330.0,0.26301227]
[1762103399509,1e-08,110340.0,110330.0,0.63348083]
[1762103401845,1e-08,110340.0,110330.0,0.26301227]
[1762103402709,1e-08,110340.0,110330.0,0.63348083]
[1762103402901,1e-08,110340.0,110330.0,0.26301227]
[1762103403040,1e-08,110340.0,110330.0,0.63348083]
[1762103404092,1e-08,110340.0,110330.0,0.26301227]
[1762103408683,1e-08,110340.0,110330.0,0.63348083]
[1762103412906,1e-08,110340.0,110330.0,0.26301227]
[1762103413115,1e-08,110340.0,110330.0,0.23818227]
[1762103413328,0.57438374,110340.0,110330.0,0.02923792]
[1762103413520,0.5517265,110340.0,110330.0,0.02923792]
[1762103414367,0.5517265,110340.0,110330.0,0.02823792]
[1762103414640,0.63406983,110340.0,110330.0,0.02723792]
[1762103414861,0.63906983,110340.0,110330.0,0.02723792]
[1762103416250,0.64206983,110340.0,110330.0,0.02723792]
[1762103416459,0.5597265,110340.0,110330.0,0.02723792]
[1762103416908,0.5597265,110340.0,110330.0,0.20851227]
[1762103417111,0.5597265,110340.0,110330.0,0.02723792]
[1762103418583,0.93061084,110340.0,110330.0,0.02723792]
[1762103418784,0.55993439,110340.0,110330.0,0.02723792]
[1762103420502,0.55993439,110340.0,110330.0,0.20851227]
[1762103421045,0.55993439,110340.0,110330.0,0.02723792]
[1762103421915,0.55993439,110340.0,110330.0,0.18127435]
[1762103422953,0.55993439,110340.0,110320.0,0.22040092]
[1762103423173,0.18127435,110330.0,110320.0,0.23679092]
[1762103424038,0.5519508,110330.0,110320.0,0.20853123]
[1762103424886,0.5539508,110330.0,110320.0,0.20853123]
[1762103425913,0.5549508,110330.0,110320.0,0.20853123]
[1762103431042,0.18427435,110330.0,110320.0,0.20853123]
[1762103431247,0.003,110330.0,110320.0,0.20853123]
[1762103431465,0.003,110330.0,110320.0,0.22426123]
[1762103431667,0.18427435,110330.0,110320.0,0.23593123]
[1762103432543,0.003,110330.0,110320.0,0.23593123]
[1762103439208,0.18427435,110330.0,110320.0,0.23593123]
[1762103439870,0.003,110330.0,110320.0,0.23593123]
[1762103443866,0.18427435,110330.0,110320.0,0.23593123]
[1762103444883,0.003,110330.0,110320.0,0.22020123]
[1762103446133,0.003,110330.0,110320.0,0.23637123]
[1762103447539,0.003,110330.0,110320.0,0.23682123]
[1762103448896,0.003,110330.0,110320.0,0.60749768]
[1762103449150,0.003,110330.0,110320.0,0.34462526]
[1762103449359,0.003,110330.0,110320.0,1.08597816]
[1762103456464,0.003,110330.0,110320.0,0.95616716]
[1762103456878,0.003,110330.0,110320.0,1.29979864]
[1762103459819,0.003,110330.0,110320.0,1.67047509]
[1762103459999,0.003,110330.0,110320.0,1.29979864]
[1762103471820,1e-08,110330.0,110320.0,1.67047509]
[1762103472579,1e-08,110340.0,110330.0,0.18127435]
[1762103472777,1e-08,110340.0,110330.0,1.02999415]
[1762103472993,1e-08,110340.0,110330.0,1.01186672]
[1762103473396,1e-08,110340.0,110330.0,1.01549777]
[1762103474237,0.00200001,110340.0,110330.0,1.01549777]
[1762103475282,0.00300001,110340.0,110330.0,1.01549777]
[1762103477462,0.00300001,110340.0,110330.0,1.1057627]
[1762103478834,0.00100001,110340.0,110330.0,1.1057627]
[1762103479046,1e-08,110340.0,110330.0,1.1077627]
[1762103479468,1e-08,110340.0,110330.0,1.1087627]
[1762103480607,1e-08,110340.0,110330.0,1.0777765]
[1762103480855,1e-08,110350.0,110340.0,4.35076361]
[1762103481049,1e-08,110350.0,110340.0,4.43416764]
[1762103481552,0.00022032,110350.0,110340.0,4.43779774]
[1762103481993,0.00022032,110350.0,110340.0,4.43979774]
[1762103482189,0.00022032,110350.0,110340.0,4.50748362]
[1762103482825,0.00022032,110350.0,110340.0,4.51348362]
[1762103483035,1e-08,110350.0,110340.0,4.51348362]
[1762103485834,1e-08,110350.0,110340.0,4.14311692]
[1762103486067,1e-08,110350.0,110340.0,4.10693464]
[1762103486297,1e-08,110350.0,110340.0,4.03924876]
[1762103487192,1e-08,110350.0,110340.0,3.66288206]
[1762103487670,1e-08,110350.0,110340.0,3.66388206]
[1762103488093,1e-08,110350.0,110340.0,4.03324876]
[1762103488314,1e-08,110350.0,110340.0,4.03124876]
[1762103488528,0.00200001,110350.0,110340.0,4.03124876]
[1762103489208,0.00300001,110350.0,110340.0,4.03124876]
[1762103490529,0.00300001,110350.0,110340.0,1.03124876]
[1762103494249,0.00300001,110350.0,110340.0,0.66088206]
[1762103503439,0.00300001,110350.0,110340.0,0.57747803]
[1762103509462,0.00300001,110350.0,110340.0,0.94784473]
[1762103515404,0.00300001,110350.0,110340.0,1.31821143]
[1762103518481,0.00300001,110350.0,110340.0,1.46621143]
[1762103519427,0.00300001,110350.0,110340.0,1.50239371]
[1762103519825,0.00300001,110350.0,110340.0,1.59221272]
[1762103523032,0.00300001,110350.0,110340.0,1.22184602]
[1762103523439,0.00300001,110350.0,110340.0,1.28991292]
[1762103524020,0.00300001,110350.0,110340.0,1.66027962]
[1762103524229,0.00300001,110350.0,110340.0,1.51227962]
[1762103526546,0.00300001,110350.0,110340.0,1.50199484]
[1762103529011,0.00308772,110350.0,110340.0,1.50199484]
[1762103530197,0.00308772,110350.0,110340.0,1.64999484]
[1762103534338,1e-08,110350.0,110340.0,4.64999484]
[1762103536578,1e-08,110350.0,110340.0,4.65199484]
[1762103542407,1e-08,110350.0,110340.0,4.65187358]
[1762103545558,1e-08,110350.0,110340.0,3.91126144]
[1762103545773,1e-08,110350.0,110340.0,4.65187358]
[1762103546016,1e-08,110350.0,110340.0,5.02217965]
[1762103546198,1e-08,110350.0,110340.0,4.87417965]
[1762103562287,1e-08,110350.0,110340.0,5.02217965]
[1762103566568,1e-08,110350.0,110340.0,4.65187358]
[1762103566781,1e-08,110350.0,110340.0,3.91126144]
[1762103566965,1e-08,110350.0,110340.0,4.6156913]
[1762103577861,1e-08,110350.0,110340.0,4.98599737]
[1762103581065,1e-08,110350.0,110340.0,4.96515337]
[1762103583349,1e-08,110350.0,110340.0,4.5948473]
[1762103583948,1e-08,110350.0,110340.0,4.96515337]
[1762103592681,1e-08,110350.0,110340.0,5.00133565]
[1762103601994,1e-08,110350.0,110340.0,4.63102958]
[1762103604462,1e-08,110350.0,110340.0,4.63101538]
[1762103608092,1e-08,110350.0,110340.0,4.29101538]
[1762103608537,1e-08,110350.0,110340.0,3.85423516]
[1762103608750,1e-08,110350.0,110340.0,1.22453413]
[1762103609391,1e-08,110350.0,110340.0,1.07653413]
[1762103609805,1e-08,110350.0,110340.0,1.4468331]
[1762103610018,1e-08,110350.0,110340.0,1.07653413]
[1762103610205,1e-08,110350.0,110340.0,1.4468331]
[1762103615225,1e-08,110350.0,110340.0,1.5948331]
[1762103621382,1e-08,110350.0,110340.0,1.4468331]
[1762103624173,1e-08,110350.0,110340.0,1.07653413]
[1762103627323,1e-08,110350.0,110340.0,1.4468331]
[1762103627575,1e-08,110350.0,110340.0,1.07653413]
[1762103627803,1e-08,110350.0,110340.0,1.4468331]
[1762103633685,1e-08,110350.0,110340.0,0.63816826]
[1762103633888,1e-08,110350.0,110340.0,1.00846723]
[1762103634668,1e-08,110350.0,110340.0,1.00646723]
[1762103635075,0.00100001,110350.0,110340.0,1.00646723]
[1762103635541,0.00200001,110350.0,110340.0,1.00646723]
[1762103636310,0.00200001,110350.0,110340.0,0.54634925]
[1762103636894,0.00200001,110350.0,110340.0,0.20634925]
[1762103637447,0.00200001,110350.0,110340.0,0.57664822]
[1762103666318,0.00200001,110350.0,110340.0,0.94707961]
[1762103677023,0.00200001,110350.0,110340.0,1.31744479]
[1762103677230,0.00200001,110350.0,110340.0,1.37689862]
[1762103677882,0.00200001,110350.0,110340.0,1.7472638]
[1762103678084,0.00200001,110350.0,110340.0,1.37689862]
[1762103678287,0.00200001,110350.0,110340.0,1.44585004]
[1762103679610,0.00200001,110350.0,110340.0,1.81621522]
[1762103680672,0.00200001,110350.0,110340.0,1.7472638]
[1762103681095,0.00200001,110350.0,110340.0,1.37689862]
[1762103683338,0.00200001,110350.0,110340.0,1.44520366]
[1762103683558,0.00200001,110350.0,110340.0,0.7044733]
[1762103683790,0.00200001,110350.0,110340.0,1.44520366]
[1762103701042,0.00200001,110350.0,110340.0,1.00653344]
[1762103701272,0.00200001,110350.0,110340.0,0.18173925]
[1762103701921,0.57626187,110350.0,110340.0,0.21256803]
[1762103702137,0.55360669,110350.0,110340.0,0.18488803]
[1762103702743,0.55360669,110350.0,110340.0,0.0036301]
[1762103703183,0.55360669,110350.0,110340.0,0.18488803]
[1762103703397,0.55260669,110350.0,110340.0,0.18488803]
[1762103703801,0.55460669,110350.0,110340.0,0.18488803]
[1762103703972,0.55160669,110350.0,110340.0,0.18488803]
[1762103704184,0.00400001,110350.0,110340.0,0.18488803]
[1762103704357,0.37836519,110350.0,110340.0,0.18488803]
[1762103704565,0.55560669,110350.0,110340.0,0.18488803]
[1762103704978,0.56260669,110350.0,110340.0,0.18488803]
[1762103705952,0.56260669,110350.0,110340.0,0.0036301]
[1762103706164,0.57607828,110350.0,110340.0,0.0036301]
[1762103706584,0.57607828,110350.0,110340.0,0.18488803]
[1762103706981,0.39483678,110350.0,110340.0,0.18488803]
[1762103709879,0.57607828,110350.0,110340.0,0.18488803]
[1762103710250,0.39483678,110350.0,110340.0,0.18488803]
[1762103710449,0.57607828,110350.0,110340.0,0.0036301]
[1762103710703,0.57607828,110350.0,110340.0,0.18488803]
[1762103711614,0.57607828,110350.0,110340.0,0.18125793]
[1762103712474,0.57607828,110350.0,110330.0,0.22063044]
[1762103712701,0.57607828,110350.0,110340.0,0.18125793]
[1762103713308,0.56907828,110350.0,110340.0,0.18125793]
[1762103713744,0.39483678,110350.0,110340.0,0.18125793]
[1762103714101,0.38783678,110350.0,110340.0,0.18125793]
[1762103714489,0.39483678,110350.0,110340.0,0.18125793]
[1762103714737,0.57607828,110350.0,110340.0,0.18125793]
[1762103716167,0.39483678,110350.0,110340.0,0.18125793]
[1762103716594,0.01100001,110350.0,110340.0,0.18125793]
[1762103716810,0.38136519,110350.0,110340.0,0.18125793]
[1762103719482,0.56260669,110350.0,110340.0,0.18125793]
[1762103728507,0.19224151,110350.0,110340.0,0.18125793]
[1762103729292,0.56278332,110350.0,110340.0,0.18125793]
[1762103729493,0.56278332,110350.0,110330.0,0.19339435]
[1762103729494,0.63722424,110350.0,110330.0,0.19339435]
[1762103729720,0.63722424,110350.0,110330.0,0.20899435]
[1762103730318,0.63022424,110350.0,110330.0,0.20899435]
[1762103730518,0.62622424,110350.0,110330.0,0.20899435]
[1762103730681,0.62622424,110350.0,110340.0,0.18125793]
[1762103730879,0.55478332,110350.0,110340.0,0.18125793]
[1762103731914,0.56178332,110350.0,110340.0,0.18125793]
[1762103732619,0.55178332,110350.0,110340.0,0.18125793]
[1762103733030,0.56178332,110350.0,110340.0,0.18125793]
[1762103734846,0.56178332,110350.0,110330.0,0.19339435]
[1762103735045,0.02265724,110340.0,110330.0,0.20899435]
[1762103736305,0.03179947,110340.0,110330.0,0.20899435]
[1762103736729,0.03379947,110340.0,110330.0,0.20899435]
[1762103736936,0.002,110340.0,110330.0,0.20899435]
[1762103737840,0.01090224,110340.0,110330.0,0.20899435]
[1762103738087,0.01490224,110340.0,110330.0,0.20899435]
[1762103740181,0.006,110340.0,110330.0,0.20899435]
[1762103741307,0.006,110340.0,110330.0,0.23162435]
[1762103763740,0.006,110340.0,110330.0,0.67237325]
[1762103766188,0.006,110340.0,110330.0,0.60216616]
[1762103767176,0.006,110340.0,110330.0,0.60816616]
[1762103767372,0.004,110340.0,110330.0,0.60816616]
[1762103767599,1e-08,110350.0,110340.0,0.18125793]
[1762103767808,1e-08,110350.0,110340.0,0.60320974]
[1762103769834,0.00200001,110350.0,110340.0,0.60320974]
[1762103769990,0.00200001,110350.0,110340.0,0.68347015]
[1762103770188,0.00600001,110350.0,110340.0,0.68347015]
[1762103771168,0.00400001,110350.0,110340.0,0.68347015]
[1762103771907,1e-08,110350.0,110340.0,0.69232563]
[1762103772108,0.00100001,110350.0,110340.0,0.69232563]
[1762103781402,0.00100001,110350.0,110340.0,1.03232563]
[1762103782506,0.00100001,110350.0,110340.0,1.46935582]
[1762103782754,0.00100001,110350.0,110340.0,1.6535381]
[1762103783356,1e-08,110350.0,110340.0,4.6535381]
[1762103784007,0.0004,110360.0,110350.0,0.5212415]
[1762103784216,0.0004,110360.0,110350.0,4.1317164]
[1762103784414,0.00062028,110360.0,110350.0,4.1317164]
[1762103784649,0.00062028,110360.0,110350.0,4.19512439]
[1762103785291,0.00062028,110360.0,110350.0,4.19812439]
[1762103785494,1e-08,110360.0,110350.0,4.19812439]
[1762103785908,1e-08,110360.0,110350.0,4.19512439]
[1762103786119,1e-08,110360.0,110350.0,4.19812439]
[1762103786305,1e-08,110360.0,110350.0,4.4206662]
[1762103786554,1e-08,110360.0,110350.0,4.05012439]
[1762103787182,1e-08,110360.0,110350.0,4.05712439]
[1762103787401,1e-08,110360.0,110350.0,4.44650488]
[1762103787605,0.0002,110380.0,110370.0,1.29847456]
[1762103787850,0.0002,110380.0,110370.0,1.43097497]
[1762103787851,0.00028771,110380.0,110370.0,1.43097497]
[1762103788329,0.00028771,110380.0,110370.0,1.43460401]
[1762103788740,0.00028771,110380.0,110370.0,1.43560401]
[1762103789208,0.00028771,110380.0,110370.0,1.58360401]
[1762103790544,0.00028771,110380.0,110370.0,1.58264701]
[1762103793584,0.00072817,110380.0,110370.0,1.2125837]
[1762103794037,0.00072817,110380.0,110370.0,0.84252039]
[1762103794257,0.00072817,110380.0,110370.0,1.2125837]
[1762103801205,0.00072817,110380.0,110370.0,1.17640142]
[1762103801444,0.00072817,110380.0,110370.0,0.80633811]
[1762103801672,0.00072817,110380.0,110370.0,1.17640142]
[1762103808283,0.00072817,110380.0,110370.0,0.80633811]
[1762103808507,0.37079148,110380.0,110370.0,0.3860777]
[1762103809414,0.00072817,110380.0,110370.0,0.3860777]
[1762103809629,0.37079148,110380.0,110370.0,0.3850777]
[1762103809846,0.37479148,110380.0,110370.0,0.3850777]
[1762103810292,0.37479148,110380.0,110370.0,0.3605877]
[1762103810731,0.37479148,110380.0,110370.0,0.3844077]
[1762103811609,0.37479148,110380.0,110370.0,0.2364077]
[1762103811823,0.37479148,110380.0,110370.0,0.2125877]
[1762103813109,0.37479148,110380.0,110370.0,0.2364077]
[1762103815096,0.00472817,110380.0,110370.0,0.2364077]
[1762103815321,0.37479148,110380.0,110370.0,0.2364077]
[1762103816436,0.00472817,110380.0,110370.0,0.2364077]
[1762103816647,0.37479148,110380.0,110370.0,0.2364077]
[1762103818131,0.00472817,110380.0,110370.0,0.2364077]
[1762103818590,0.00472817,110380.0,110370.0,0.68645014]
[1762103818809,0.00472817,110380.0,110370.0,3.68645014]
[1762103819007,0.00472817,110380.0,110370.0,4.39651345]
[1762103820574,0.00472817,110380.0,110370.0,4.02645014]
[1762103820786,0.00472817,110380.0,110370.0,4.39651345]
[1762103821395,0.00072817,110380.0,110370.0,4.39651345]
[1762103821920,0.00072817,110380.0,110370.0,4.02645014]
[1762103823462,0.00072817,110380.0,110370.0,4.17445014]
[1762103824554,0.00072817,110380.0,110370.0,4.54451345]
[1762103826650,0.0002,110400.0,110390.0,0.18117583]
[1762103826862,0.0002,110400.0,110390.0,0.65730204]
[1762103827059,0.0002,110400.0,110390.0,0.63918446]
[1762103827301,0.0002,110400.0,110390.0,0.66640318]
[1762103827851,0.0072,110400.0,110390.0,0.66640318]
[1762103832367,0.00764035,110400.0,110390.0,0.66640318]
[1762103836619,0.00764035,110400.0,110390.0,0.23628455]
[1762103837050,0.581508,110400.0,110380.0,0.34137732]
[1762103837260,0.55842273,110400.0,110390.0,0.18117583]
[1762103837892,0.55142273,110400.0,110390.0,0.18117583]
[1762103838312,0.55842273,110400.0,110390.0,0.18117583]
[1762103840085,0.55142273,110400.0,110390.0,0.18117583]
[1762103840293,0.92848604,110400.0,110390.0,0.18117583]
[1762103840506,0.55842273,110400.0,110390.0,0.18117583]
[1762103841162,0.37726331,110400.0,110390.0,0.18117583]
[1762103841611,0.37726331,110400.0,110390.0,0.20977583]
[1762103852477,0.0072,110400.0,110390.0,0.20977583]
[1762103852874,0.00764035,110400.0,110390.0,0.20977583]
[1762103860409,0.18879977,110400.0,110390.0,0.18117583]
[1762103861639,0.00764035,110400.0,110390.0,0.18117583]
[1762103861856,0.37784192,110400.0,110390.0,0.18117583]
[1762103862765,0.18879977,110400.0,110390.0,0.18117583]
[1762103862992,0.00764035,110400.0,110390.0,0.18117583]
[1762103868846,0.00764035,110400.0,110390.0,0.19756583]
[1762103869770,0.00764035,110400.0,110390.0,0.20909583]
[1762103883525,0.18879977,110400.0,110390.0,0.18117583]
[1762103885247,0.00764035,110400.0,110390.0,0.18117583]
[1762103885472,0.18879977,110400.0,110390.0,0.18117583]
[1762103886300,0.20423712,110400.0,110390.0,0.18117583]
[1762103887160,0.0230777,110400.0,110390.0,0.18117583]
[1762103887601,0.20423712,110400.0,110390.0,0.18117583]
[1762103888992,0.00764035,110400.0,110390.0,0.18117583]
[1762103889197,0.18879977,110400.0,110390.0,0.18117583]
[1762103891903,0.18117583,110390.0,110380.0,0.03942353]
[1762103892117,0.6642893,110390.0,110380.0,0.18119224]
[1762103892336,0.64164233,110390.0,110380.0,0.18119224]
[1762103892771,0.64164233,110390.0,110370.0,0.22053818]
[1762103892987,0.02264903,110380.0,110370.0,0.23692818]
[1762103894128,0.02264903,110380.0,110370.0,0.20842818]
[1762103894814,0.64164233,110390.0,110380.0,0.18119224]
[1762103895036,0.64464233,110390.0,110380.0,0.18119224]
[1762103895380,0.64464233,110390.0,110370.0,0.18120203]
[1762103895607,0.64164233,110390.0,110370.0,0.18120203]
[1762103895809,0.64164233,110390.0,110380.0,0.18119224]
[1762103896006,0.73146134,110390.0,110370.0,0.18120203]
[1762103896213,0.37020157,110380.0,110370.0,0.18120203]
[1762103897029,0.55139381,110380.0,110370.0,0.18120203]
[1762103897612,0.55339381,110380.0,110370.0,0.18120203]
[1762103898154,0.37520157,110380.0,110370.0,0.18120203]
[1762103898568,0.37520157,110380.0,110370.0,0.19689203]
[1762103898791,0.005,110380.0,110370.0,0.20890203]
[1762103903028,0.005,110380.0,110370.0,0.18120203]
[1762103903274,0.18619224,110380.0,110370.0,0.18120203]
[1762103903474,0.005,110380.0,110370.0,0.18120203]
[1762103903650,0.18619224,110380.0,110370.0,0.18120203]
[1762103903860,0.18120866,110370.0,110360.0,0.21749793]
[1762103904086,0.66432624,110370.0,110360.0,8.771e-05]
[1762103904297,0.64167516,110370.0,110360.0,0.20854356]
[1762103905423,0.64167516,110370.0,110360.0,0.18131279]
[1762103905636,0.65058263,110370.0,110360.0,0.18131279]
[1762103906122,0.65058263,110370.0,110360.0,0.18231279]
[1762103906535,0.65058263,110370.0,110360.0,0.18131279]
[1762103906755,0.65358263,110370.0,110360.0,0.18131279]
[1762103906959,0.65858263,110370.0,110360.0,0.18131279]
[1762103907174,0.47737397,110370.0,110360.0,0.18131279]
[1762103907387,0.38710904,110370.0,110360.0,0.18131279]
[1762103907796,0.5683177,110370.0,110360.0,0.18131279]
[1762103908442,0.38710904,110370.0,110360.0,0.18131279]
[1762103909302,0.19811613,110370.0,110360.0,0.18131279]
[1762103909506,0.28838106,110370.0,110360.0,0.18131279]
[1762103910421,0.1071724,110370.0,110360.0,0.18131279]
[1762103910965,0.28838106,110370.0,110360.0,0.18131279]
[1762103911905,0.1071724,110370.0,110360.0,0.18131279]
[1762103913943,0.28838106,110370.0,110360.0,0.18131279]
[1762103914363,0.65880729,110370.0,110360.0,0.18131279]
[1762103916942,0.47759863,110370.0,110360.0,0.18131279]
[1762103917356,0.65880729,110370.0,110360.0,0.18131279]
[1762103917762,0.65880729,110370.0,110360.0,8.771e-05]
[1762103918189,0.69816816,110370.0,110360.0,8.771e-05]
[1762103918810,0.65880729,110370.0,110360.0,8.771e-05]
[1762103920967,0.67835362,110370.0,110360.0,8.771e-05]
[1762103922018,1.01835362,110370.0,110360.0,8.771e-05]
[1762103922493,1.38877985,110370.0,110360.0,8.771e-05]
[1762103922706,1.41601535,110370.0,110360.0,8.771e-05]
[1762103924242,1.47569989,110370.0,110360.0,8.771e-05]
[1762103924471,1.50539851,110370.0,110360.0,8.771e-05]
[1762103924687,1.54158079,110370.0,110360.0,8.771e-05]
[1762103926075,1.48189625,110370.0,110360.0,8.771e-05]
[1762103931085,1.50634542,110370.0,110360.0,8.771e-05]
[1762103931532,1.48189625,110370.0,110360.0,8.771e-05]
[1762103932277,1.50634542,110370.0,110360.0,8.771e-05]
[1762103933143,1.48189625,110370.0,110360.0,8.771e-05]
[1762103933746,1.50634542,110370.0,110360.0,8.771e-05]
[1762103934274,1.59616443,110370.0,110360.0,8.771e-05]
[1762103934681,1.63845263,110370.0,110360.0,8.771e-05]
[1762103935342,1.66246981,110370.0,110360.0,8.771e-05]
[1762103935497,1.67644964,110370.0,110360.0,8.771e-05]
[1762103936050,1.67544964,110370.0,110360.0,8.771e-05]
[1762103936563,1.68044964,110370.0,110360.0,8.771e-05]
[1762103936974,1.67544964,110370.0,110360.0,8.771e-05]
[1762103937386,1.68444964,110370.0,110360.0,8.771e-05]
[1762103937596,1.69044963,110370.0,110360.0,8.771e-05]
[1762103938010,1.69544963,110370.0,110360.0,8.771e-05]
[1762103938221,1.69044963,110370.0,110360.0,8.771e-05]
[1762103938653,1.69444963,110370.0,110360.0,8.771e-05]
[1762103946593,0.95359717,110370.0,110360.0,8.771e-05]
[1762103946802,1.69444963,110370.0,110360.0,8.771e-05]
[1762103948218,2.06487586,110370.0,110360.0,8.771e-05]
[1762103948389,2.03258765,110370.0,110360.0,8.771e-05]
[1762103948787,1.66216142,110370.0,110360.0,8.771e-05]
[1762103949427,2.03258765,110370.0,110360.0,8.771e-05]
[1762103949625,2.23258765,110370.0,110360.0,8.771e-05]
[1762103950240,2.1841213,110370.0,110360.0,8.771e-05]
[1762103950923,2.1801213,110370.0,110360.0,8.771e-05]
[1762103951122,2.1771213,110370.0,110360.0,8.771e-05]
[1762103951333,2.2796613,110370.0,110360.0,8.771e-05]
[1762103951543,0.55171702,110320.0,110310.0,0.00192368]
[1762103951749,0.55171702,110320.0,110310.0,0.1837151]
[1762103952191,0.55171702,110320.0,110310.0,0.21095967]
[1762103952757,0.37042623,110320.0,110310.0,0.21095967]
[1762103953162,0.37142623,110320.0,110310.0,0.22095967]
[1762103953693,0.001,110320.0,110310.0,0.22395967]
[1762103954074,0.92314325,110320.0,110310.0,0.22395967]
[1762103954290,0.55271702,110320.0,110310.0,0.22395967]
[1762103954488,0.55271702,110320.0,110310.0,0.04265245]
[1762103956301,0.98282779,110320.0,110310.0,0.04265245]
[1762103956506,1.32282779,110320.0,110310.0,0.04265245]
[1762103956928,1.26314325,110320.0,110310.0,0.04265245]
[1762103957357,1.28169316,110320.0,110310.0,0.02965245]
[1762103957743,1.28269316,110320.0,110310.0,0.02965245]
[1762103958360,1.28169316,110320.0,110310.0,0.02965245]
[1762103958775,1.28269316,110320.0,110310.0,0.02965245]
[1762103959009,1.37251217,110320.0,110310.0,0.02965245]
[1762103959496,1.28269316,110320.0,110310.0,0.02965245]
[1762103959997,0.5418407,110320.0,110310.0,0.02965245]
[1762103960240,0.5418407,110320.0,110310.0,0.21095967]
[1762103960241,0.36054991,110320.0,110310.0,0.21095967]
[1762103960703,0.36054991,110320.0,110310.0,0.23742967]
[1762103960934,0.341,110320.0,110310.0,0.23742967]
[1762103961170,0.001,110320.0,110310.0,0.26232967]
[1762103961661,0.001,110320.0,110310.0,0.23742967]
[1762103963100,0.18229079,110320.0,110310.0,0.23742967]
[1762103963950,0.18229079,110320.0,110310.0,0.22223967]
[1762103964378,0.001,110320.0,110310.0,0.22223967]
[1762103964801,0.001,110320.0,110310.0,0.23825967]
[1762103968265,0.001,110320.0,110310.0,0.26157967]
[1762103968465,0.001,110320.0,110310.0,0.6320059]
[1762103968669,0.001,110320.0,110310.0,0.26157967]
[1762103969650,0.001,110320.0,110310.0,0.6320059]
[1762103970054,0.001,110320.0,110310.0,0.26157967]
[1762103972651,0.001,110320.0,110310.0,0.23825967]
[1762103975867,0.001,110320.0,110310.0,0.26157967]
[1762103977976,0.001,110320.0,110310.0,0.23825967]
[1762103979485,0.001,110320.0,110310.0,0.26157967]
[1762103982201,0.001,110320.0,110310.0,0.23825967]
[1762103982555,0.001,110320.0,110310.0,0.26157967]
[1762103984813,0.001,110320.0,110310.0,0.71479341]
[1762103985555,0.60505891,110340.0,110310.0,0.35313553]
[1762103985765,0.60505891,110340.0,110330.0,0.18127435]
[1762103985766,0.57433567,110340.0,110330.0,0.18127435]
[1762103986005,0.94505891,110340.0,110330.0,0.18127435]
[1762103986206,0.94505891,110340.0,110330.0,0.2085168]
[1762103986411,0.99620147,110340.0,110330.0,0.02724245]
[1762103986620,0.94505891,110340.0,110330.0,0.02724245]
[1762103987623,0.95105891,110340.0,110330.0,0.02724245]
[1762103987851,0.95105891,110340.0,110330.0,0.2085168]
[1762103988063,0.94705891,110340.0,110330.0,0.2085168]
[1762103988499,0.95105891,110340.0,110330.0,0.2085168]
[1762103988717,0.95105891,110340.0,110330.0,0.02724245]
[1762103988958,0.95105891,110340.0,110330.0,0.2085168]
[1762103990942,1.04087792,110340.0,110330.0,0.2085168]
[1762103992805,1.04087792,110340.0,110330.0,0.02724245]
[1762103996384,1.07347942,110340.0,110330.0,0.02724245]
[1762103997528,0.18128869,110330.0,110320.0,0.18129079]
[1762103997741,0.66182417,110330.0,110320.0,0.20853324]
[1762103998341,0.66182417,110330.0,110320.0,0.02724245]
[1762104000688,1.00182417,110330.0,110320.0,0.02724245]
[1762104001170,1.06245757,110330.0,110320.0,0.02724245]
[1762104001385,0.18129079,110320.0,110310.0,0.00240788]
[1762104001589,0.99464454,110320.0,110310.0,0.02965582]
[1762104001789,1.43798449,110320.0,110310.0,0.00240788]
[1762104002006,1.46243561,110320.0,110310.0,0.00240788]
[1762104003346,1.34816548,110320.0,110310.0,0.00240788]
[1762104003551,0.97744224,110320.0,110310.0,0.00240788]